[Event "POL-chT 2nd League Juniors 2020"]
[Site "Sypniewo"]
[Date "2020.10.28"]
[Round "7.11"]
[White "Hertlein, Irena"]
[Black "Seemann, Pola"]
[Result "1-0"]
[ECO "B33"]
[WhiteElo "1893"]
[BlackElo "1566"]
[Annotator "NA"]
[PlyCount "45"]
[EventDate "2020.10.23"]
[EventType "team-tourn"]
[EventCountry "POL"]
[SourceTitle "playchess.com"]
[Source "ChessBase"]
[SourceQuality "1"]
[TimeControl "5400+30"]

1. e4 {[%emt 0:00:00]} c5 {[%emt 0:00:00]} 2. Nf3 {[%emt 0:00:00]} Nc6 {[%emt 0:00:00]} 3. d4 {[%emt 0:00:00]} cxd4 {[%emt 0:00:00]} 4. Nxd4 {[%emt 0:00:05]} Nf6 {[%emt 0:00:00]} 5. Nc3 {[%emt 0:00:14]} e6 {[%emt 0:00:00]} 6. Nxc6 {[%emt 0:12:07]} bxc6 {[%emt 0:00:08]} 7. e5 {[%emt 0:00:07]} Nd5 {[%emt 0:00:04]} 8. Ne4 {[%emt 0:00:05]} Bb7 {[%emt 0:00:11]} 9. Be2 {[%emt 0:06:31]} Qb8 {[%emt 0:05:38]} 10. Nd6+ {[%emt 0:01:32]} Bxd6 {[%emt 0:00:09]} 11. exd6 {[%emt 0:00:02]} a5 {[%emt 0:03:25]} 12. O-O {[%emt 0:11:34]} Ba6 {[%emt 0:05:34]} 13. c4 {[%emt 0:17:35]} Nb6 {[%emt 0:06:06]} 14. Be3 {[%emt 0:02:40]} Nxc4 {[%emt 0:10:21]} 15. Bxc4 {[%emt 0:02:00]} Bxc4 {[%emt 0:00:41]} 16. Qd4 {[%emt 0:00:39]} Bxf1 {[%emt 0:03:33]} 17. Qxg7 {[%emt 0:00:50]} Rf8 {[%emt 0:00:11]} 18. Rd1 {[%emt 0:00:29]} Qxd6 {[%emt 0:22:09]} 19. Rxd6 {[%emt 0:00:07]} Ke7 {[%emt 0:00:06]} 20. Bc5 {[%emt 0:00:53]} Rg8 {[%emt 0:02:33]} 21. Rd1+ {[%emt 0:00:38]} d6 {[%emt 0:00:18]} 22. Bxd6+ {[%emt 0:00:07]} Kd7 {[%emt 0:00:18]} 23. Qxf7+ {[%emt 0:00:09]} 1-0

[Event "POL-chT 2nd League Juniors 2020"]
[Site "Sypniewo"]
[Date "2020.10.28"]
[Round "7.11"]
[White "Lach, Alicja"]
[Black "Czarnecka, Lidia"]
[Result "0-1"]
[ECO "B40"]
[WhiteElo "1161"]
[BlackElo "1861"]
[Annotator "NA"]
[PlyCount "60"]
[EventDate "2020.10.23"]
[EventType "team-tourn"]
[EventCountry "POL"]
[SourceTitle "playchess.com"]
[Source "ChessBase"]
[SourceQuality "1"]
[TimeControl "5400+30"]

1. e4 c5 2. Nf3 e6 3. d4 cxd4 4. Nxd4 Nf6 5. Bd3 Nc6 6. Nxc6 dxc6 7. O-O e5 8. Nd2 Qc7 9. Nc4 Be6 10. Qf3 Be7 11. b3 O-O 12. Bb2 Nd7 13. Nd2 Rad8 14. Qe2 Nc5 15. Nf3 f6 16. Bc4 Kh8 17. Rad1 Bg4 18. h3 Bh5 19. Qe3 b5 20. Be2 Bg6 21. Bd3 Ne6 22. g3 Bc5 23. Qe2 Bh5 24. h4 g5 25. b4 Bxb4 26. c3 Bc5 27. Rd2 gxh4 28. gxh4 Nf4 29. Qd1 Qg7+ 30. Kh2 Qg2# 0-1

[Event "POL-chT 2nd League Juniors 2020"]
[Site "Sypniewo"]
[Date "2020.10.28"]
[Round "7.12"]
[White "Zabron, Maksym"]
[Black "Majocha, Piotr"]
[Result "*"]
[ECO "D51"]
[WhiteElo "1932"]
[BlackElo "2074"]
[Annotator "RC"]
[PlyCount "23"]
[EventDate "2020.10.23"]
[EventType "team-tourn"]
[EventCountry "POL"]
[SourceTitle "playchess.com"]
[Source "ChessBase"]
[SourceQuality "1"]
[TimeControl "5400+30"]

1. d4 {[%emt 0:00:00]} d5 {[%emt 0:00:00]} 2. c4 {[%emt 0:00:00]} e6 {[%emt 0:00:00]} 3. Nc3 {[%emt 0:00:00]} Nf6 {[%emt 0:00:00]} 4. Bg5 {[%emt 0:00:00]} Nbd7 {[%emt 0:00:00]} 5. Nf3 {[%emt 0:00:28]} Be7 {[%emt 0:00:32]} 6. e3 {[%emt 0:00:18]} c6 {[%emt 0:00:37]} 7. Bd3 {[%emt 0:02:06]} dxc4 {[%emt 0:00:28]} 8. Bxc4 {[%emt 0:00:10]} b5 {[%emt 0:00:07]} 9. Bd3 {[%emt 0:01:12]} a6 {[%emt 0:00:47]} 10. O-O {[%emt 0:00:55]} O-O {[%emt 0:00:24]} 11. Rc1 {[%emt 0:00:44]} Bb7 {[%emt 0:01:32]} 12. Ne5 {[%emt 0:05:06]} *

[Event "POL-chT 2nd League Juniors 2020"]
[Site "Sypniewo"]
[Date "2020.10.28"]
[Round "7.12"]
[White "Gaszka, Zuzanna"]
[Black "Lajdamik, Anna"]
[Result "1-0"]
[ECO "D06"]
[WhiteElo "1417"]
[BlackElo "1292"]
[Annotator "NA"]
[PlyCount "97"]
[EventDate "2020.10.23"]
[EventType "team-tourn"]
[EventCountry "POL"]
[SourceTitle "playchess.com"]
[Source "ChessBase"]
[SourceQuality "1"]
[TimeControl "5400+30"]

1. d4 {[%emt 0:00:00]} d5 {[%emt 0:00:00]} 2. c4 {[%emt 0:00:00]} Bf5 {[%emt 0:01:09]} 3. cxd5 {[%emt 0:00:00]} Bxb1 {[%emt 0:00:33]} 4. Rxb1 {[%emt 0:00:00]} Qxd5 {[%emt 0:02:00]} 5. Nf3 {[%emt 0:00:04]} Nc6 {[%emt 0:02:53]} 6. e3 {[%emt 0:00:57]} e6 {[%emt 0:01:20]} 7. Bd2 {[%emt 0:09:20]} Nf6 {[%emt 0:02:07]} 8. Qc2 {[%emt 0:11:03]} Be7 {[%emt 0:09:35]} 9. Bc4 {[%emt 0:08:25]} Qe4 {[%emt 0:11:54]} 10. Bd3 {[%emt 0:03:23]} Qd5 {[%emt 0:03:18]} 11. O-O {[%emt 0:01:16]} O-O {[%emt 0:00:26]} 12. b4 {[%emt 0:20:53]} a6 {[%emt 0:10:20]} 13. e4 {[%emt 0:08:11]} Qd8 {[%emt 0:06:34]} 14. Bc3 {[%emt 0:02:50]} h6 {[%emt 0:07:10]} 15. Rfd1 {[%emt 0:02:39]} Re8 {[%emt 0:04:55]} 16. Qe2 {[%emt 0:06:46]} Bf8 {[%emt 0:03:49]} 17. Bc2 {[%emt 0:01:08]} Qe7 {[%emt 0:04:17]} 18. Qc4 {[%emt 0:04:08]} Rad8 {[%emt 0:03:35]} 19. b5 {[%emt 0:03:07]} axb5 {[%emt 0:00:38]} 20. Rxb5 {[%emt 0:01:50]} Nb8 {[%emt 0:02:37]} 21. Rxb7 {[%emt 0:01:58]} Rd7 {[%emt 0:00:37]} 22. Ne5 {[%emt 0:00:33]} Rdd8 {[%emt 0:02:31]} 23. Rxc7 {[%emt 0:01:38]} Nfd7 {[%emt 0:01:30]} 24. Nxd7 {[%emt 0:01:14]} Rxd7 {[%emt 0:00:12]} 25. Rxd7 {[%emt 0:00:37]} Nxd7 {[%emt 0:00:14]} 26. Bb3 {[%emt 0:02:01]} Nb6 {[%emt 0:01:06]} 27. Qd3 {[%emt 0:00:58]} Qb7 {[%emt 0:00:35]} 28. Qf3 {[%emt 0:01:58]} Rc8 {[%emt 0:00:40]} 29. Bd2 {[%emt 0:00:58]} Nc4 {[%emt 0:00:54]} 30. Bxc4 {[%emt 0:00:42]} Rxc4 {[%emt 0:00:14]} 31. Bc3 {[%emt 0:02:01]} Bb4 {[%emt 0:00:14]} 32. Bxb4 {[%emt 0:00:30]} Qxb4 {[%emt 0:00:13]} 33. Qe3 {[%emt 0:01:44]} e5 {[%emt 0:00:55]} 34. dxe5 {[%emt 0:02:40]} Rxe4 {[%emt 0:00:11]} 35. Qd3 {[%emt 0:00:58]} Re1+ {[%emt 0:00:09]} 36. Rxe1 {[%emt 0:00:07]} Qxe1+ {[%emt 0:00:02]} 37. Qf1 {[%emt 0:00:12]} Qxe5 {[%emt 0:00:11]} 38. g3 {[%emt 0:00:26]} Qb2 {[%emt 0:00:23]} 39. Qc4 {[%emt 0:00:20]} Qa3 {[%emt 0:00:25]} 40. Qc8+ {[%emt 0:00:36]} Kh7 {[%emt 0:00:07]} 41. Qc2+ {[%emt 0:00:19]} Kg8 {[%emt 0:00:12]} 42. Qb3 {[%emt 0:00:19]} Qxb3 {[%emt 0:00:58]} 43. axb3 {[%emt 0:00:04]} Kf8 {[%emt 0:00:04]} 44. Kg2 {[%emt 0:00:07]} Ke7 {[%emt 0:00:05]} 45. Kf3 {[%emt 0:00:21]} Kd6 {[%emt 0:00:06]} 46. Ke4 {[%emt 0:00:35]} Kc5 {[%emt 0:00:05]} 47. Kd3 {[%emt 0:00:07]} Kb4 {[%emt 0:00:05]} 48. Kc2 {[%emt 0:00:07]} h5 {[%emt 0:00:10]} 49. f4 {[%emt 0:00:44]} 1-0

[Event "POL-chT 2nd League Juniors 2020"]
[Site "Sypniewo"]
[Date "2020.10.28"]
[Round "7.12"]
[White "Slusarczyk, Anna"]
[Black "Mainka, Anna"]
[Result "1/2-1/2"]
[ECO "D51"]
[WhiteElo "1330"]
[BlackElo "1280"]
[Annotator "NA"]
[PlyCount "63"]
[EventDate "2020.10.23"]
[EventType "team-tourn"]
[EventCountry "POL"]
[SourceTitle "playchess.com"]
[Source "ChessBase"]
[SourceQuality "1"]
[TimeControl "5400+30"]

1. d4 {[%emt 0:00:00]} d5 {[%emt 0:00:00]} 2. c4 {[%emt 0:00:00]} e6 {[%emt 0:00:00]} 3. Nc3 {[%emt 0:00:00]} Nf6 {[%emt 0:00:00]} 4. Bg5 {[%emt 0:00:00]} Nbd7 {[%emt 0:00:00]} 5. Nf3 {[%emt 0:00:28]} Be7 {[%emt 0:00:32]} 6. e3 {[%emt 0:00:18]} c6 {[%emt 0:00:37]} 7. Bd3 {[%emt 0:02:06]} dxc4 {[%emt 0:00:28]} 8. Bxc4 {[%emt 0:00:10]} b5 {[%emt 0:00:07]} 9. Bd3 {[%emt 0:01:12]} a6 {[%emt 0:00:47]} 10. O-O {[%emt 0:00:55]} O-O {[%emt 0:00:24]} 11. Rc1 {[%emt 0:00:44]} Bb7 {[%emt 0:01:32]} 12. Ne5 {[%emt 0:05:06]} Rc8 {[%emt 0:04:19]} 13. f4 {[%emt 0:01:34]} c5 {[%emt 0:04:16]} 14. f5 {[%emt 0:10:18]} cxd4 {[%emt 0:03:35]} 15. exd4 {[%emt 0:00:10]} Nxe5 {[%emt 0:01:40]} 16. dxe5 {[%emt 0:00:14]} Qd4+ {[%emt 0:00:38]} 17. Kh1 {[%emt 0:02:54]} Qxe5 {[%emt 0:00:15]} 18. Bf4 {[%emt 0:00:31]} Qc5 {[%emt 0:05:49]} 19. fxe6 {[%emt 0:05:29]} fxe6 {[%emt 0:03:31]} 20. Qe2 {[%emt 0:01:35]} Qb6 {[%emt 0:08:51]} 21. Be3 {[%emt 0:02:51]} Qd6 {[%emt 0:04:01]} 22. Rcd1 {[%emt 0:06:08]} Qc6 {[%emt 0:07:54]} 23. Bd4 {[%emt 0:05:30]} Rcd8 {[%emt 0:05:28]} 24. Bxf6 {[%emt 0:01:13]} Rxf6 {[%emt 0:03:37]} 25. Rxf6 {[%emt 0:02:58]} Bxf6 {[%emt 0:00:14]} 26. Be4 {[%emt 0:04:37]} Rxd1+ {[%emt 0:01:45]} 27. Qxd1 {[%emt 0:00:06]} Qc7 {[%emt 0:01:03]} 28. Bxh7+ {[%emt 0:00:25]} Kxh7 {[%emt 0:00:33]} 29. Qh5+ {[%emt 0:00:04]} Kg8 {[%emt 0:00:06]} 30. Qe8+ {[%emt 0:00:04]} Kh7 {[%emt 0:00:07]} 31. Qh5+ {[%emt 0:00:04]} Kg8 {[%emt 0:00:06]} 32. Qe8+ {[%emt 0:00:11]} 1/2-1/2

[Event "POL-chT 2nd League Juniors 2020"]
[Site "Sypniewo"]
[Date "2020.10.28"]
[Round "7.13"]
[White "Dalkowski, Rafal"]
[Black "Zniszczol, Wiktoria"]
[Result "*"]
[ECO "A46"]
[WhiteElo "1871"]
[BlackElo "1620"]
[Annotator "NA"]
[PlyCount "21"]
[EventDate "2020.10.23"]
[EventType "team-tourn"]
[EventCountry "POL"]
[SourceTitle "playchess.com"]
[Source "ChessBase"]
[SourceQuality "1"]
[TimeControl "5400+30"]

1. d4 Nf6 {[%emt 0:00:00]} 2. Nf3 {[%emt 0:00:46]} e6 {[%emt 0:00:00]} 3. e3 {[%emt 0:01:05]} b6 {[%emt 0:00:00]} 4. Bd3 {[%emt 0:00:54]} Bb7 {[%emt 0:00:00]} 5. O-O {[%emt 0:00:13]} Be7 {[%emt 0:00:10]} 6. b3 {[%emt 0:00:31]} O-O {[%emt 0:00:09]} 7. Bb2 {[%emt 0:00:11]} d5 {[%emt 0:01:12]} 8. Nbd2 {[%emt 0:00:29]} Nbd7 {[%emt 0:00:54]} 9. Ne5 {[%emt 0:02:27]} Nxe5 {[%emt 0:02:05]} 10. dxe5 {[%emt 0:00:11]} Ne4 {[%emt 0:00:05]} 11. f3 {[%emt 0:03:34]} *

[Event "POL-chT 2nd League Juniors 2020"]
[Site "Sypniewo"]
[Date "2020.10.28"]
[Round "7.13"]
[White "Malik, Maciej"]
[Black "Bujalski, Mateusz"]
[Result "1/2-1/2"]
[ECO "A46"]
[WhiteElo "1671"]
[BlackElo "1865"]
[Annotator "NA"]
[PlyCount "114"]
[EventDate "2020.10.23"]
[EventType "team-tourn"]
[EventCountry "POL"]
[SourceTitle "playchess.com"]
[Source "ChessBase"]
[SourceQuality "1"]
[TimeControl "5400+30"]

1. d4 Nf6 {[%emt 0:00:00]} 2. Nf3 {[%emt 0:00:46]} e6 {[%emt 0:00:00]} 3. e3 {[%emt 0:01:05]} b6 {[%emt 0:00:00]} 4. Bd3 {[%emt 0:00:54]} Bb7 {[%emt 0:00:00]} 5. O-O {[%emt 0:00:13]} Be7 {[%emt 0:00:10]} 6. b3 {[%emt 0:00:31]} O-O {[%emt 0:00:09]} 7. Bb2 {[%emt 0:00:11]} d5 {[%emt 0:01:12]} 8. Nbd2 {[%emt 0:00:29]} Nbd7 {[%emt 0:00:54]} 9. Ne5 {[%emt 0:02:27]} Nxe5 {[%emt 0:02:05]} 10. dxe5 {[%emt 0:00:11]} Ne4 {[%emt 0:00:05]} 11. f3 {[%emt 0:03:34]} Nxd2 12. Qxd2 {[%emt 0:00:05]} Bc5 {[%emt 0:04:00]} 13. Kh1 {[%emt 0:02:44]} a5 {[%emt 0:04:52]} 14. a3 {[%emt 0:01:01]} Be7 {[%emt 0:04:05]} 15. Qe2 {[%emt 0:04:43]} c5 {[%emt 0:02:58]} 16. f4 {[%emt 0:03:55]} a4 {[%emt 0:08:58]} 17. Rfd1 {[%emt 0:11:15]} Qc8 {[%emt 0:02:24]} 18. Bb5 {[%emt 0:01:21]} axb3 {[%emt 0:00:39]} 19. cxb3 {[%emt 0:00:06]} Ba6 {[%emt 0:00:10]} 20. f5 {[%emt 0:13:33]} Bxb5 {[%emt 0:02:45]} 21. Qxb5 {[%emt 0:00:05]} Bg5 {[%emt 0:00:05]} 22. Qe2 {[%emt 0:01:22]} Qc6 {[%emt 0:00:42]} 23. h4 {[%emt 0:08:36]} Bh6 {[%emt 0:05:06]} 24. f6 {[%emt 0:03:03]} g6 {[%emt 0:00:37]} 25. e4 {[%emt 0:02:37]} d4 {[%emt 0:00:40]} 26. Qf3 {[%emt 0:01:05]} Rfd8 {[%emt 0:04:04]} 27. g4 {[%emt 0:01:45]} Be3 {[%emt 0:00:38]} 28. Rd3 {[%emt 0:11:44]} Qb5 {[%emt 0:01:22]} 29. Rad1 {[%emt 0:00:31]} c4 {[%emt 0:03:37]} 30. bxc4 {[%emt 0:00:26]} Qxb2 {[%emt 0:00:26]} 31. Qxe3 {[%emt 0:00:06]} Kh8 {[%emt 0:03:30]} 32. Rxd4 {[%emt 0:02:00]} Rg8 {[%emt 0:00:20]} 33. R1d3 {[%emt 0:01:19]} Qa1+ {[%emt 0:00:32]} 34. Kg2 {[%emt 0:00:12]} Qb2+ {[%emt 0:00:06]} 35. Kg3 {[%emt 0:00:49]} Qa1 {[%emt 0:00:35]} 36. Kg2 {[%emt 0:03:36]} Qb2+ {[%emt 0:00:11]} 37. Qd2 {[%emt 0:01:58]} Qb1 {[%emt 0:02:25]} 38. Rd7 {[%emt 0:00:45]} Rgf8 {[%emt 0:05:12]} 39. Qh6 {[%emt 0:01:13]} Qc2+ {[%emt 0:00:06]} 40. Rd2 {[%emt 0:00:27]} Qxe4+ {[%emt 0:00:06]} 41. Kf2 {[%emt 0:00:03]} Rg8 {[%emt 0:00:40]} 42. Rxf7 {[%emt 0:00:09]} g5 {[%emt 0:00:22]} 43. hxg5 {[%emt 0:17:53]} Qf4+ {[%emt 0:00:48]} 44. Kg1 {[%emt 0:00:35]} Qxg4+ {[%emt 0:03:40]} 45. Rg2 {[%emt 0:00:24]} Qd4+ {[%emt 0:00:44]} 46. Kh2 {[%emt 0:00:27]} Qxe5+ {[%emt 0:00:08]} 47. Rg3 {[%emt 0:00:30]} Qe2+ {[%emt 0:03:20]} 48. Rg2 {[%emt 0:00:33]} Qe5+ {[%emt 0:00:09]} 49. Rg3 {[%emt 0:00:09]} Qe2+ {[%emt 0:01:45]} 50. Kg1 {[%emt 0:00:45]} Qd1+ {[%emt 0:00:57]} 51. Kh2 {[%emt 0:00:19]} Qe2+ $11 {[%emt 0:01:32]} 52. Kg1 {[%emt 0:00:44]} Qd1+ {[%emt 0:00:06]} 53. Kh2 {[%emt 0:00:34]} Qe2+ {[%emt 0:00:28]} 54. Kg1 {[%emt 0:00:36]} Qd1+ {[%emt 0:00:11]} 55. Kh2 {[%emt 0:00:29]} Qe2+ {[%emt 0:00:06]} 56. Kg1 {[%emt 0:00:33]} Qd1+ {[%emt 0:00:05]} 57. Kh2 {[%emt 0:00:03]} Qe2+ {[%emt 0:00:17]} 1/2-1/2

[Event "POL-chT 2nd League Juniors 2020"]
[Site "Sypniewo"]
[Date "2020.10.28"]
[Round "7.14"]
[White "Dalkowski, Rafal"]
[Black "Zniszczol, Wiktoria"]
[Result "1/2-1/2"]
[ECO "A58"]
[WhiteElo "1871"]
[BlackElo "1620"]
[Annotator "NA"]
[PlyCount "72"]
[EventDate "2020.10.23"]
[EventType "team-tourn"]
[EventCountry "POL"]
[SourceTitle "playchess.com"]
[Source "ChessBase"]
[SourceQuality "1"]
[TimeControl "5400+30"]

1. d4 {[%emt 0:00:00]} Nf6 {[%emt 0:00:00]} 2. c4 {[%emt 0:00:00]} c5 {[%emt 0:00:00]} 3. d5 {[%emt 0:00:00]} b5 {[%emt 0:00:00]} 4. cxb5 {[%emt 0:00:00]} a6 {[%emt 0:00:03]} 5. bxa6 {[%emt 0:00:02]} Bxa6 {[%emt 0:00:20]} 6. Nc3 {[%emt 0:00:07]} d6 {[%emt 0:00:30]} 7. g3 {[%emt 0:00:09]} g6 {[%emt 0:00:14]} 8. Bg2 {[%emt 0:00:07]} Bg7 {[%emt 0:00:26]} 9. Nf3 {[%emt 0:00:08]} O-O {[%emt 0:00:30]} 10. O-O {[%emt 0:00:07]} Nbd7 {[%emt 0:00:08]} 11. Qc2 {[%emt 0:00:12]} Ng4 {[%emt 0:11:25]} 12. Rb1 {[%emt 0:06:00]} Nge5 {[%emt 0:01:51]} 13. b3 {[%emt 0:04:32]} Qa5 {[%emt 0:10:03]} 14. Bd2 {[%emt 0:05:56]} Rfc8 {[%emt 0:14:51]} 15. a4 {[%emt 0:07:40]} Qc7 {[%emt 0:09:34]} 16. h4 {[%emt 0:11:03]} Nxf3+ {[%emt 0:03:05]} 17. Bxf3 {[%emt 0:00:24]} Ne5 {[%emt 0:00:08]} 18. Bg2 {[%emt 0:06:56]} Rab8 {[%emt 0:04:11]} 19. Rfe1 {[%emt 0:05:53]} Rb7 {[%emt 0:08:27]} 20. h5 {[%emt 0:06:03]} Rcb8 {[%emt 0:05:44]} 21. Na2 {[%emt 0:12:31]} Qd7 {[%emt 0:03:19]} 22. b4 {[%emt 0:07:17]} Nc4 {[%emt 0:04:28]} 23. b5 {[%emt 0:09:50]} Na3 {[%emt 0:02:25]} 24. Qd3 {[%emt 0:00:21]} Nxb1 {[%emt 0:00:10]} 25. Rxb1 {[%emt 0:00:09]} Bxb5 {[%emt 0:01:30]} 26. axb5 {[%emt 0:00:08]} Rxb5 {[%emt 0:00:40]} 27. Rd1 {[%emt 0:01:49]} Rb3 {[%emt 0:04:45]} 28. Qe4 {[%emt 0:01:45]} Qa7 {[%emt 0:00:36]} 29. Nc1 {[%emt 0:01:04]} Rb1 {[%emt 0:00:53]} 30. Rf1 {[%emt 0:01:06]} Bf6 {[%emt 0:01:28]} 31. g4 {[%emt 0:00:59]} R8b7 {[%emt 0:02:45]} 32. g5 {[%emt 0:01:03]} Bg7 {[%emt 0:00:55]} 33. Qg4 {[%emt 0:01:05]} Rb8 {[%emt 0:02:37]} 34. Be4 {[%emt 0:00:49]} Qa4 {[%emt 0:02:50]} 35. Qf4 {[%emt 0:03:18]} R1b2 {[%emt 0:01:39]} 36. Be1 $2 {[%emt 0:02:15] [#]} (36. Be3 $14 {stays ahead.}) 36... Qd4 $11 {[%emt 0:02:12]} (36... Rc2 $1 $19 {[%mdl 512]} 37. Nd3 (37. Bxc2 Qxf4) 37... Rxe2) 1/2-1/2

[Event "POL-chT 2nd League Juniors 2020"]
[Site "Sypniewo"]
[Date "2020.10.28"]
[Round "7.14"]
[White "Karut, Kacper"]
[Black "Wieckowski, Michal"]
[Result "*"]
[ECO "A58"]
[WhiteElo "1657"]
[BlackElo "1494"]
[Annotator "NA"]
[PlyCount "22"]
[EventDate "2020.10.23"]
[EventType "team-tourn"]
[EventCountry "POL"]
[SourceTitle "playchess.com"]
[Source "ChessBase"]
[SourceQuality "1"]
[TimeControl "5400+30"]

1. d4 {[%emt 0:00:00]} Nf6 {[%emt 0:00:00]} 2. c4 {[%emt 0:00:00]} c5 {[%emt 0:00:00]} 3. d5 {[%emt 0:00:00]} b5 {[%emt 0:00:00]} 4. cxb5 {[%emt 0:00:00]} a6 {[%emt 0:00:03]} 5. bxa6 {[%emt 0:00:02]} Bxa6 {[%emt 0:00:20]} 6. Nc3 {[%emt 0:00:07]} d6 {[%emt 0:00:30]} 7. g3 {[%emt 0:00:09]} g6 {[%emt 0:00:14]} 8. Bg2 {[%emt 0:00:07]} Bg7 {[%emt 0:00:26]} 9. Nf3 {[%emt 0:00:08]} O-O {[%emt 0:00:30]} 10. O-O {[%emt 0:00:07]} Nbd7 {[%emt 0:00:08]} 11. Qc2 {[%emt 0:00:12]} Ng4 {[%emt 0:11:25]} *

[Event "POL-chT 2nd League Juniors 2020"]
[Site "Sypniewo"]
[Date "2020.10.28"]
[Round "7.15"]
[White "Karut, Kacper"]
[Black "Wieckowski, Michal"]
[Result "1-0"]
[ECO "B76"]
[WhiteElo "1657"]
[BlackElo "1494"]
[Annotator "NA"]
[PlyCount "49"]
[EventDate "2020.10.23"]
[EventType "team-tourn"]
[EventCountry "POL"]
[SourceTitle "playchess.com"]
[Source "ChessBase"]
[SourceQuality "1"]
[TimeControl "5400+30"]

1. e4 {[%emt 0:00:00]} c5 {[%emt 0:00:00]} 2. Nf3 {[%emt 0:00:00]} d6 {[%emt 0:00:00]} 3. d4 {[%emt 0:00:00]} cxd4 {[%emt 0:00:00]} 4. Nxd4 {[%emt 0:00:00]} Nf6 {[%emt 0:00:00]} 5. Nc3 {[%emt 0:00:00]} g6 {[%emt 0:00:00]} 6. Be3 {[%emt 0:00:15]} Bg7 {[%emt 0:00:14]} 7. f3 {[%emt 0:00:05]} O-O {[%emt 0:00:24]} 8. Qd2 {[%emt 0:00:07]} Nc6 {[%emt 0:00:24]} 9. g4 {[%emt 0:00:10]} Nxd4 {[%emt 0:05:15]} 10. Bxd4 {[%emt 0:01:18]} Be6 {[%emt 0:02:00]} 11. O-O-O {[%emt 0:00:58]} Qa5 {[%emt 0:02:28]} 12. a3 {[%emt 0:02:40]} Rfc8 {[%emt 0:02:24]} 13. h4 {[%emt 0:01:47]} h5 {[%emt 0:08:03]} 14. gxh5 {[%emt 0:06:44]} Nxh5 {[%emt 0:00:27]} 15. Bxg7 {[%emt 0:00:27]} Kxg7 {[%emt 0:00:54]} 16. Rg1 {[%emt 0:15:51]} Rc5 {[%emt 0:19:39]} 17. Rg5 {[%emt 0:14:57]} Rac8 {[%emt 0:17:21]} 18. Rxc5 {[%emt 0:13:24]} Qxc5 {[%emt 0:03:17]} 19. f4 {[%emt 0:07:07]} Nf6 {[%emt 0:13:32]} 20. Bd3 {[%emt 0:15:25]} Bc4 {[%emt 0:05:31]} 21. Bxc4 {[%emt 0:04:55]} Qxc4 {[%emt 0:00:06]} 22. Re1 {[%emt 0:04:07]} Rc5 {[%emt 0:04:06]} 23. Qf2 {[%emt 0:02:41]} b5 {[%emt 0:09:53]} 24. e5 {[%emt 0:03:17]} Nd5 {[%emt 0:01:05]} 25. Re4 {[%emt 0:01:17]} 1-0

[Event "POL-chT 2nd League Juniors 2020"]
[Site "Sypniewo"]
[Date "2020.10.28"]
[Round "7.15"]
[White "Leszczewicz, Karol"]
[Black "Pycinski, Wladyslaw"]
[Result "*"]
[ECO "B54"]
[WhiteElo "1267"]
[BlackElo "1149"]
[Annotator "NA"]
[PlyCount "23"]
[EventDate "2020.10.23"]
[EventType "team-tourn"]
[EventCountry "POL"]
[SourceTitle "playchess.com"]
[Source "ChessBase"]
[SourceQuality "1"]
[TimeControl "5400+30"]

1. e4 {[%emt 0:00:00]} c5 {[%emt 0:00:00]} 2. Nf3 {[%emt 0:00:00]} d6 {[%emt 0:00:00]} 3. d4 {[%emt 0:00:00]} cxd4 {[%emt 0:00:00]} 4. Nxd4 {[%emt 0:00:00]} Nf6 {[%emt 0:00:00]} 5. Nc3 {[%emt 0:00:00]} g6 {[%emt 0:00:00]} 6. Be3 {[%emt 0:00:15]} Bg7 {[%emt 0:00:14]} 7. f3 {[%emt 0:00:05]} O-O {[%emt 0:00:24]} 8. Qd2 {[%emt 0:00:07]} Nc6 {[%emt 0:00:24]} 9. g4 {[%emt 0:00:10]} Nxd4 {[%emt 0:05:15]} 10. Bxd4 {[%emt 0:01:18]} Be6 {[%emt 0:02:00]} 11. O-O-O {[%emt 0:00:58]} Qa5 {[%emt 0:02:28]} 12. a3 {[%emt 0:02:40]} *

[Event "POL-chT 2nd League Juniors 2020"]
[Site "Sypniewo"]
[Date "2020.10.28"]
[Round "7.16"]
[White "Leszczewicz, Karol"]
[Black "Pycinski, Wladyslaw"]
[Result "1-0"]
[ECO "D02"]
[WhiteElo "1267"]
[BlackElo "1149"]
[Annotator "NA"]
[PlyCount "85"]
[EventDate "2020.10.23"]
[EventType "team-tourn"]
[EventCountry "POL"]
[SourceTitle "playchess.com"]
[Source "ChessBase"]
[SourceQuality "1"]
[TimeControl "5400+30"]

1. d4 {[%emt 0:00:00]} d5 {[%emt 0:00:31]} 2. Nf3 {[%emt 0:00:00]} c6 {[%emt 0:00:54]} 3. Bf4 {[%emt 0:00:28]} Bg4 {[%emt 0:02:47]} 4. Ne5 {[%emt 0:01:33]} Bh5 {[%emt 0:03:56]} 5. Nd2 {[%emt 0:02:33]} e6 {[%emt 0:04:41]} 6. c3 {[%emt 0:07:16]} Qb6 {[%emt 0:06:58]} 7. Qc2 {[%emt 0:02:58]} Nf6 {[%emt 0:03:00]} 8. e3 {[%emt 0:03:10]} Nbd7 {[%emt 0:03:21]} 9. Bd3 {[%emt 0:02:55]} Be7 {[%emt 0:06:35]} 10. O-O {[%emt 0:00:59]} Bg6 {[%emt 0:07:56]} 11. Bxg6 {[%emt 0:03:49]} hxg6 {[%emt 0:03:52]} 12. Ndf3 {[%emt 0:04:58]} Nxe5 {[%emt 0:05:00]} 13. Nxe5 {[%emt 0:00:26]} Nh5 {[%emt 0:06:26]} 14. Bg3 {[%emt 0:01:28]} Nxg3 {[%emt 0:02:02]} 15. fxg3 {[%emt 0:00:16]} Bf6 {[%emt 0:00:56]} 16. Qf2 {[%emt 0:05:01]} O-O {[%emt 0:05:20]} 17. Nd7 {[%emt 0:00:29]} Qc7 {[%emt 0:00:50]} 18. Nxf8 {[%emt 0:00:14]} Rxf8 {[%emt 0:00:13]} 19. Qc2 {[%emt 0:05:31]} e5 {[%emt 0:01:58]} 20. Kh1 {[%emt 0:02:50]} e4 {[%emt 0:02:27]} 21. Rab1 {[%emt 0:01:26]} Bg5 {[%emt 0:00:52]} 22. Rbe1 {[%emt 0:03:19]} a6 {[%emt 0:02:45]} 23. c4 {[%emt 0:00:27]} Qd7 {[%emt 0:00:44]} 24. cxd5 {[%emt 0:00:18]} Qxd5 {[%emt 0:00:09]} 25. Qc5 {[%emt 0:00:29]} Rd8 {[%emt 0:02:23]} 26. Qxd5 {[%emt 0:01:31]} Rxd5 {[%emt 0:01:59]} 27. h4 {[%emt 0:00:18]} Bd8 {[%emt 0:01:08]} 28. Rc1 {[%emt 0:00:44]} Bc7 {[%emt 0:01:09]} 29. Rc5 {[%emt 0:05:41]} Rxc5 {[%emt 0:04:07]} 30. dxc5 {[%emt 0:00:03]} Bxg3 {[%emt 0:00:10]} 31. b4 {[%emt 0:00:44]} Kf8 {[%emt 0:01:30]} 32. Rd1 {[%emt 0:00:32]} Bxh4 {[%emt 0:02:08]} 33. Rd7 {[%emt 0:01:30]} Bf2 {[%emt 0:00:14]} 34. g4 {[%emt 0:00:16]} Bxe3 {[%emt 0:00:15]} 35. Kg2 {[%emt 0:00:06]} f5 {[%emt 0:01:20]} 36. gxf5 {[%emt 0:00:08]} gxf5 {[%emt 0:00:05]} 37. Rxb7 {[%emt 0:00:13]} Bd2 {[%emt 0:00:05]} 38. a4 {[%emt 0:02:22]} f4 {[%emt 0:00:26]} 39. Kf2 {[%emt 0:00:20]} f3 {[%emt 0:00:41]} 40. b5 {[%emt 0:00:14]} axb5 {[%emt 0:01:44]} 41. axb5 {[%emt 0:00:13]} Ke8 {[%emt 0:02:45]} 42. bxc6 {[%emt 0:01:46]} Kd8 {[%emt 0:00:48]} 43. Rd7+ 1-0